bitfinex/quotes_BTCUSD_20240827
["timestamp","ask_amount","ask_price","bid_price","bid_amount"]
[1724767305653,0.16490251,62302.0,62291.0,0.0504]
[1724767305890,0.15996545,62302.0,62295.0,0.02015906]
[1724767306121,0.4116,62303.0,62295.0,0.02015906]
[1724767306367,0.15996545,62302.0,62295.0,0.02015906]
[1724767307129,0.4116,62303.0,62295.0,0.02015906]
[1724767307344,0.4126,62303.0,62301.0,3.41872122]
[1724767307575,0.15996545,62302.0,62301.0,3.41872122]
[1724767307810,0.15996545,62302.0,62301.0,3.50772122]
[1724767308051,0.15996545,62302.0,62301.0,3.52072122]
[1724767308294,0.16490245,62302.0,62301.0,3.52072122]
[1724767309001,0.16490245,62302.0,62301.0,3.51172122]
[1724767309224,0.73480245,62302.0,62301.0,3.52172122]
[1724767310182,0.73570775,62302.0,62301.0,3.52172122]
[1724767310891,0.73570775,62302.0,62301.0,3.50872122]
[1724767311114,0.16187075,62302.0,62301.0,3.50872122]
[1724767312277,0.16087075,62302.0,62301.0,3.49872122]
[1724767312504,0.0039053,62302.0,62301.0,3.68712122]
[1724767313085,0.0009053,62302.0,62301.0,3.68712122]
[1724767313326,0.0019053,62302.0,62301.0,3.69312122]
[1724767313562,0.0019053,62302.0,62301.0,3.69712122]
[1724767313789,0.0019053,62302.0,62301.0,3.50872122]
[1724767314279,0.0029053,62302.0,62301.0,3.52172122]
[1724767320301,0.0029053,62302.0,62301.0,3.90202122]
[1724767321243,0.0019053,62302.0,62301.0,3.87902122]
[1724767321493,0.0009053,62302.0,62301.0,3.87902122]
[1724767321717,0.0009053,62302.0,62301.0,3.89302122]
[1724767321962,0.0009053,62302.0,62301.0,3.51272122]
[1724767322837,0.0009053,62302.0,62301.0,3.52672122]
[1724767323047,0.0009053,62302.0,62301.0,3.51272122]
[1724767323537,0.0009053,62302.0,62301.0,3.52672122]
[1724767324020,0.0009053,62302.0,62301.0,3.51272122]
[1724767324255,0.16179479,62302.0,62301.0,3.52672122]
[1724767324484,0.53909479,62302.0,62301.0,3.42672122]
[1724767324709,0.80232557,62302.0,62301.0,3.42672122]
[1724767325403,0.72979479,62302.0,62301.0,3.42672122]
[1724767326102,0.72979479,62302.0,62301.0,3.41272122]
[1724767326319,0.72979479,62302.0,62301.0,3.39872122]
[1724767326539,0.72979479,62302.0,62301.0,3.41872122]
[1724767326783,0.72979479,62302.0,62301.0,3.40972122]
[1724767327011,0.72979479,62302.0,62301.0,3.39872122]
[1724767327231,0.54017075,62302.0,62301.0,3.39972122]
[1724767327463,0.53817075,62302.0,62301.0,3.39872122]
[1724767327687,0.53817075,62302.0,62301.0,3.49872122]
[1724767327688,0.0009053,62302.0,62301.0,3.49872122]
[1724767327913,0.0039053,62302.0,62301.0,3.49872122]
[1724767329278,0.0009053,62302.0,62301.0,3.49872122]
[1724767329497,0.55599479,62302.0,62301.0,3.49872122]
[1724767329714,0.55799479,62302.0,62301.0,3.49872122]
[1724767329935,0.55599479,62302.0,62301.0,3.49872122]
[1724767330391,0.3951053,62302.0,62301.0,3.50772122]
[1724767330599,0.0009053,62302.0,62301.0,3.49872122]
[1724767330817,0.0009053,62302.0,62301.0,3.50972122]
[1724767331049,0.0009053,62302.0,62301.0,3.51372122]
[1724767331273,0.0009053,62302.0,62301.0,3.50272122]
[1724767331533,0.0009053,62302.0,62301.0,3.68932122]
[1724767331757,0.47989634,62324.0,62306.0,0.34547251]
[1724767331982,0.47989634,62324.0,62310.0,0.07304481]
[1724767332240,0.47989634,62324.0,62311.0,0.07304481]
[1724767332460,0.3983,62325.0,62311.0,0.17304481]
[1724767333410,0.3983,62325.0,62311.0,0.14483821]
[1724767333675,0.3983,62332.0,62314.0,0.1955]
[1724767333909,0.3983,62346.0,62327.0,0.160444]
[1724767334137,0.3983,62346.0,62327.0,1.89360645]
[1724767334396,0.00092404,62354.0,62332.0,0.160429]
[1724767334605,0.00090421,62355.0,62337.0,0.047905]
[1724767334832,0.00090421,62355.0,62340.0,0.34547251]
[1724767335070,0.00090421,62355.0,62342.0,0.04786526]
[1724767335292,0.00090421,62355.0,62351.0,0.04786526]
[1724767335524,0.00090421,62355.0,62352.0,0.385391]
[1724767335757,0.00090421,62355.0,62353.0,0.1]
[1724767336878,0.00090421,62355.0,62352.0,0.02024204]
[1724767337337,0.00090421,62355.0,62353.0,0.011]
[1724767337551,0.00090421,62355.0,62354.0,0.023]
[1724767338005,0.00090421,62355.0,62354.0,1.173792]
[1724767338235,0.009053,62391.0,62358.0,0.001]
[1724767338460,0.47989634,62375.0,62368.0,0.001]
[1724767338750,0.009053,62377.0,62374.0,0.001]
[1724767338948,0.009053,62377.0,62375.0,0.1935]
[1724767339169,0.009053,62377.0,62376.0,0.1]
[1724767340380,0.17302634,62377.0,62369.0,0.1]
[1724767340623,0.17302634,62377.0,62354.0,0.023]
[1724767340624,0.01306089,62377.0,62376.0,0.014]
[1724767341354,0.74982634,62377.0,62376.0,0.009]
[1724767341591,0.82661848,62377.0,62376.0,0.009]
[1724767342044,0.74581845,62377.0,62376.0,0.009]
[1724767342741,0.74581845,62377.0,62376.0,0.006]
[1724767343177,0.4087,62376.0,62369.0,0.003]
[1724767343398,0.4087,62371.0,62350.0,0.02012314]
[1724767343612,0.16397483,62370.0,62345.0,0.001]
[1724767344242,0.16397483,62370.0,62345.0,0.02053721]
[1724767344456,0.16397483,62370.0,62369.0,0.001]
[1724767344674,0.73587483,62370.0,62369.0,0.001]
[1724767345980,0.73587483,62370.0,62345.0,0.001]
[1724767346220,0.73587483,62370.0,62345.0,0.004]
[1724767346476,0.73587483,62370.0,62352.0,0.064245]
[1724767346707,0.47989634,62369.0,62352.0,0.064245]
[1724767346975,0.16397488,62368.0,62352.0,0.064245]
[1724767347252,0.16397488,62368.0,62343.0,0.02012533]
[1724767347253,0.15996545,62364.0,62343.0,0.02012533]
[1724767347507,0.4077099,62363.0,62344.0,0.064252]
[1724767347742,0.15996545,62362.0,62344.0,0.064252]
[1724767347977,0.00400948,62361.0,62344.0,0.064252]
[1724767348217,0.15996545,62360.0,62344.0,0.064252]
[1724767348460,0.00400948,62359.0,62344.0,0.064252]
[1724767348706,0.15996545,62358.0,62344.0,0.064252]
[1724767348928,0.00400948,62357.0,62344.0,0.064252]
[1724767349421,0.15996545,62356.0,62344.0,0.064252]
[1724767349662,0.00400967,62355.0,62344.0,0.064252]
[1724767349920,0.15996545,62354.0,62344.0,0.064252]
[1724767350199,0.5825,62352.0,62344.0,0.067252]
[1724767350458,0.16397569,62351.0,62344.0,0.064252]
[1724767350697,0.16397569,62351.0,62342.0,0.02038444]
[1724767350949,0.16397569,62351.0,62344.0,0.011]
[1724767351197,0.16397569,62351.0,62344.0,0.007]
[1724767351401,0.16397569,62351.0,62344.0,0.003]
[1724767351666,0.16397569,62351.0,62344.0,0.009]
[1724767351894,0.375,62350.0,62344.0,0.009]
[1724767352156,0.16397586,62349.0,62344.0,0.009]
[1724767352854,0.16397586,62349.0,62344.0,0.003]
[1724767353096,0.16397586,62349.0,62336.0,0.064259]
[1724767353339,0.16397586,62349.0,62344.0,0.007]
[1724767353842,0.16397586,62349.0,62342.0,0.004]
[1724767354097,0.16497586,62349.0,62342.0,0.004]
[1724767354552,0.16497586,62349.0,62334.0,0.08436545]
[1724767354774,0.16397586,62349.0,62336.0,0.001]
[1724767355221,0.16397586,62349.0,62337.0,0.4016]
[1724767355405,0.16397586,62349.0,62338.0,0.1]
[1724767356173,0.001,62349.0,62340.0,0.001]
[1724767356428,0.001,62349.0,62340.0,0.101]
[1724767356671,0.00400966,62355.0,62340.0,0.101]
[1724767356672,0.00400966,62355.0,62342.0,0.001]
[1724767356908,0.15996545,62354.0,62342.0,0.001]
[1724767357138,0.00400989,62353.0,62342.0,0.001]
[1724767357353,0.15996545,62352.0,62342.0,0.001]
[1724767357572,0.00401017,62351.0,62334.0,0.18436545]
[1724767357765,0.15996545,62350.0,62342.0,0.013822]
[1724767358036,0.41591016,62349.0,62342.0,0.013822]
[1724767358278,0.41591016,62349.0,62342.0,0.000822]
[1724767358279,0.34956545,62348.0,62342.0,0.000822]
[1724767358491,0.00401058,62347.0,62342.0,0.000822]
[1724767358734,0.4119,62345.0,62342.0,0.000822]
[1724767358980,0.3958,62343.0,62342.0,0.000822]
[1724767359200,0.55576545,62343.0,62342.0,0.000822]
[1724767359668,0.55576545,62343.0,62342.0,0.022822]
[1724767360119,0.55576545,62343.0,62342.0,0.013822]
[1724767360333,0.55576545,62343.0,62342.0,0.000822]
[1724767360554,0.001,62343.0,62342.0,0.000822]
[1724767361226,0.00401026,62347.0,62342.0,0.000822]
[1724767361445,0.15996545,62343.0,62342.0,0.000822]
[1724767361715,0.15996545,62343.0,62342.0,0.002822]
[1724767362158,0.00401026,62347.0,62342.0,0.002822]
[1724767362381,0.15996545,62346.0,62342.0,0.002822]
[1724767362599,0.00401031,62345.0,62342.0,0.002822]
[1724767362824,0.00401031,62345.0,62342.0,0.007822]
[1724767362825,0.15996545,62344.0,62342.0,0.007822]
[1724767363040,0.00401056,62343.0,62342.0,0.007822]
[1724767363257,0.00401055,62347.0,62342.0,0.007822]
[1724767363474,0.15996545,62346.0,62342.0,0.000822]
[1724767363697,0.15996545,62346.0,62342.0,0.002822]
[1724767363940,0.1843,62353.0,62342.0,0.002822]
[1724767364162,0.3779,62354.0,62342.0,0.002822]
[1724767364163,0.16397547,62352.0,62342.0,0.002822]
[1724767364390,0.3779,62359.0,62344.0,0.001]
[1724767364602,0.3779,62359.0,62342.0,0.025822]
[1724767364603,0.3779,62370.0,62348.0,0.6011]
[1724767364813,0.16397463,62369.0,62348.0,0.6011]
[1724767365033,0.00400918,62368.0,62354.0,0.001]
[1724767365267,0.00400918,62368.0,62349.0,0.44335145]
[1724767365494,0.00400918,62368.0,62349.0,0.124]
[1724767365495,0.15996545,62367.0,62349.0,0.124]
[1724767365746,0.00400906,62366.0,62349.0,0.124]
[1724767365975,0.15996545,62365.0,62349.0,0.124]
[1724767366197,0.00400906,62364.0,62349.0,0.124]
[1724767367268,0.00400906,62364.0,62349.0,0.138]
[1724767367483,0.00400906,62364.0,62349.0,0.15779636]
[1724767367676,0.00400906,62364.0,62349.0,0.14379636]
[1724767368112,0.00400906,62364.0,62349.0,0.17179636]
[1724767369226,0.3779,62370.0,62349.0,0.17179636]
[1724767369227,0.3779,62370.0,62354.0,0.001]
[1724767369472,0.53786545,62370.0,62354.0,0.001]
[1724767369681,0.00400872,62369.0,62354.0,0.124]
[1724767369901,0.4133,62367.0,62351.0,0.1]
[1724767370116,0.4133,62364.0,62351.0,0.1]
[1724767370375,0.16397508,62363.0,62351.0,0.1]
[1724767370582,0.4133,62362.0,62354.0,0.011]
[1724767370799,0.16397506,62361.0,62354.0,0.011]
[1724767371011,0.16397506,62361.0,62354.0,0.009]
[1724767371448,0.16397506,62361.0,62351.0,0.008]
[1724767371897,0.3903,62360.0,62351.0,0.014]
[1724767372141,0.3903,62358.0,62351.0,0.014]
[1724767372362,0.16397536,62357.0,62351.0,0.008]
[1724767372585,0.16397536,62357.0,62349.0,0.01979636]
[1724767372586,0.16397536,62357.0,62354.0,0.005]
[1724767373261,0.16397536,62357.0,62354.0,0.017]
[1724767373499,0.3903,62356.0,62354.0,0.005]
[1724767373734,0.39431039,62355.0,62354.0,0.009]
[1724767373980,0.55427584,62355.0,62354.0,0.009]
[1724767374422,0.55427584,62355.0,62348.0,0.01946925]
[1724767374646,0.15996545,62354.0,62348.0,0.01946925]
[1724767374868,0.00401007,62353.0,62344.0,0.02052841]
[1724767375125,0.15996545,62352.0,62344.0,0.02052841]
[1724767375351,0.00400986,62351.0,62344.0,0.403722]
[1724767375580,0.15996545,62352.0,62344.0,0.403722]
[1724767375581,0.15996545,62352.0,62345.0,0.1]
[1724767375827,0.00400986,62351.0,62345.0,0.1]
[1724767376092,0.15996545,62352.0,62345.0,0.1]
[1724767376564,0.00400986,62351.0,62345.0,0.1]
[1724767376802,0.00400986,62351.0,62344.0,0.013822]
[1724767377292,0.00400986,62351.0,62344.0,0.004822]
[1724767377533,0.00400987,62354.0,62345.0,0.008]
[1724767377773,0.15996545,62353.0,62345.0,0.008]
[1724767378003,0.00400987,62352.0,62345.0,0.008]
[1724767378239,0.16397532,62352.0,62345.0,0.013]
[1724767378491,0.16397532,62352.0,62345.0,0.008]
[1724767378727,0.15996545,62351.0,62345.0,0.008]
[1724767378962,0.00400999,62350.0,62345.0,0.003]
[1724767379208,0.16397544,62350.0,62344.0,0.009822]
[1724767379442,0.16397544,62350.0,62345.0,0.005]
[1724767379960,0.00400999,62354.0,62345.0,0.005]
[1724767380201,0.00400999,62354.0,62345.0,0.014]
[1724767380443,0.15996545,62353.0,62345.0,0.014]
[1724767380683,0.39291012,62352.0,62345.0,0.005]
[1724767380928,0.15996545,62351.0,62345.0,0.005]
[1724767381180,0.00401013,62350.0,62344.0,0.000822]
[1724767381420,0.15996545,62349.0,62345.0,0.017]
[1724767381638,0.3889,62352.0,62345.0,0.01]
[1724767381873,0.00400979,62351.0,62345.0,0.01]
[1724767382125,0.15996545,62350.0,62345.0,0.015]
[1724767382359,0.00401022,62349.0,62345.0,0.015]
[1724767382581,0.15996545,62348.0,62345.0,0.015]
[1724767382823,0.00401022,62347.0,62345.0,0.015]
[1724767383077,0.00401022,62347.0,62344.0,0.000822]
[1724767383078,0.15996545,62346.0,62344.0,0.000822]
[1724767383339,0.00401035,62345.0,62344.0,0.000822]
[1724767383567,0.1639758,62345.0,62344.0,0.000822]
[1724767383795,0.73136545,62345.0,62344.0,0.000822]
[1724767384781,0.54516545,62345.0,62344.0,0.000822]
[1724767385456,0.54516545,62345.0,62344.0,0.013822]
[1724767386157,0.3852,62345.0,62344.0,0.027822]
[1724767386406,0.48089634,62372.0,62344.0,0.027822]
[1724767386407,0.3829,62353.0,62344.0,0.027822]
[1724767386631,0.3829,62359.0,62349.0,0.04792794]
[1724767386853,0.16397503,62358.0,62349.0,0.14792794]
[1724767387100,0.16397503,62358.0,62349.0,0.1]
[1724767387575,0.5962,62357.0,62349.0,0.1]
[1724767387795,0.16397534,62356.0,62349.0,0.1]
[1724767388019,0.16397534,62356.0,62344.0,0.007822]
[1724767388251,0.16397534,62356.0,62349.0,0.005]
[1724767388549,0.16397534,62356.0,62344.0,0.007822]
[1724767388784,0.16397534,62356.0,62349.0,0.008]
[1724767389267,0.16397534,62356.0,62344.0,0.000822]
[1724767389510,0.16355404,62356.0,62349.0,0.009]
[1724767389783,0.16355404,62356.0,62349.0,0.018]
[1724767389982,0.16355404,62356.0,62349.0,0.009]
[1724767390225,0.16355404,62356.0,62349.0,0.02]
[1724767391595,0.4081,62361.0,62349.0,0.212]
[1724767391825,0.00400936,62360.0,62350.0,0.1]
[1724767392049,0.00400936,62360.0,62350.0,0.14792794]
[1724767392305,0.56806545,62361.0,62350.0,0.14792794]
[1724767392511,0.56806545,62361.0,62350.0,0.1480036]
[1724767392740,0.0040093,62360.0,62350.0,0.1480036]
[1724767393224,0.0040093,62360.0,62350.0,0.104]
[1724767393679,0.0040093,62360.0,62350.0,0.11]
[1724767393926,0.0040093,62360.0,62350.0,0.1580036]
[1724767394406,0.4063,62366.0,62350.0,0.15800181]
[1724767394643,0.16397453,62365.0,62356.0,0.04800181]
[1724767394888,0.16397451,62365.0,62356.0,0.04800181]
[1724767395106,0.15996545,62365.0,62358.0,0.04800181]
[1724767395349,0.3905,62374.0,62360.0,0.04800181]
[1724767395594,0.48390484,62373.0,62360.0,0.14800181]
[1724767395821,0.0040085,62373.0,62362.0,0.04800181]
[1724767396053,0.00090421,62376.0,62363.0,0.023]
[1724767396332,0.00090421,62376.0,62368.0,0.04800181]
[1724767396552,0.00090421,62376.0,62371.0,0.23810181]
[1724767396787,0.00090421,62376.0,62372.0,0.64115781]
[1724767397011,0.00090421,62376.0,62372.0,0.14800181]
[1724767397240,0.00090421,62376.0,62372.0,0.1]
[1724767398369,0.3752,62375.0,62372.0,0.1]
[1724767398601,0.00400826,62374.0,62368.0,0.014]
[1724767399059,0.00400826,62374.0,62366.0,0.1]
[1724767399287,0.15996545,62373.0,62366.0,0.1]
[1724767399507,0.15996545,62373.0,62372.0,0.026]
[1724767399730,0.3752,62375.0,62372.0,0.014]
[1724767399954,0.15996545,62374.0,62360.0,0.1]
[1724767400214,0.15996545,62374.0,62366.0,0.014]
[1724767401364,0.15996545,62374.0,62368.0,0.014]
[1724767401583,0.00400864,62373.0,62366.0,0.014]
[1724767401827,0.56746545,62372.0,62360.0,0.01505453]
[1724767402051,0.00400888,62371.0,62366.0,0.014]
[1724767402278,0.6003,62369.0,62356.0,0.01505478]
[1724767402508,0.4075,62367.0,62360.0,0.02025513]
[1724767402789,0.16397476,62366.0,62351.0,0.064241]
[1724767403015,0.4075,62365.0,62351.0,0.064241]
[1724767403239,0.4075,62363.0,62351.0,0.08370513]
[1724767403460,0.16397502,62362.0,62351.0,0.08370513]
[1724767403691,0.16397502,62362.0,62351.0,0.45890513]
[1724767403907,0.16397469,62362.0,62351.0,0.45890513]
[1724767404145,0.16397469,62362.0,62351.0,0.39466413]
[1724767404385,0.16397469,62362.0,62352.0,0.064242]
[1724767404617,0.16397469,62362.0,62351.0,0.01946413]
[1724767404618,0.3758,62359.0,62351.0,0.01946413]
[1724767404848,0.3758,62359.0,62345.0,0.065075]
[1724767404849,0.16397535,62358.0,62345.0,0.065075]
[1724767405078,0.16397535,62358.0,62345.0,0.09961416]
[1724767405307,0.16397535,62358.0,62345.0,0.08455938]
[1724767405531,0.16397535,62358.0,62345.0,0.0996173]
[1724767405756,0.3856,62365.0,62350.0,0.1895]
[1724767405985,0.3856,62365.0,62351.0,0.107]
[1724767405986,0.47989634,62361.0,62351.0,0.107]
[1724767406222,0.16397478,62360.0,62351.0,0.107]
[1724767406437,0.3854,62359.0,62347.0,0.01505745]
[1724767406662,0.16397507,62358.0,62351.0,0.008]
[1724767407148,0.16397507,62358.0,62346.0,0.1]
[1724767407388,0.16397507,62358.0,62351.0,0.012]
[1724767408057,0.3768,62356.0,62351.0,0.012822]
[1724767408285,0.16397537,62355.0,62351.0,0.012822]
[1724767408512,0.3945,62354.0,62351.0,0.012822]
[1724767408734,0.16397539,62353.0,62351.0,0.008822]
[1724767408980,0.16397539,62353.0,62351.0,0.000822]
[1724767409242,0.16397539,62353.0,62351.0,0.014822]
[1724767409492,0.16397539,62353.0,62351.0,0.003822]
[1724767409712,0.16397539,62353.0,62351.0,0.000822]
[1724767409936,0.16397539,62353.0,62351.0,0.009822]
[1724767410192,0.1917,62367.0,62352.0,0.1805]
[1724767410415,0.3882,62364.0,62352.0,0.1805]
[1724767410642,0.00400908,62363.0,62353.0,0.1]
[1724767411135,0.3882,62364.0,62353.0,0.1]
[1724767411387,0.00400908,62363.0,62353.0,0.1]
[1724767411877,0.3882,62364.0,62353.0,0.1]
[1724767412144,0.00400908,62362.0,62353.0,0.1]
[1724767412661,0.15996545,62361.0,62353.0,0.1]
[1724767412898,0.41380955,62360.0,62351.0,0.000822]
[1724767413143,0.15996545,62359.0,62351.0,0.000822]
[1724767413366,0.57690996,62358.0,62351.0,0.000822]
[1724767413598,0.15996545,62357.0,62353.0,0.011]
[1724767413819,0.00400994,62356.0,62353.0,0.02]
[1724767414048,0.15996545,62355.0,62353.0,0.02]
[1724767414279,0.39090992,62354.0,62353.0,0.02]
[1724767414503,0.55087537,62354.0,62353.0,0.02]
[1724767414983,1.13390199,62354.0,62351.0,0.000822]
[1724767415229,0.002,62351.0,62345.0,0.000822]
[1724767415456,0.91226045,62346.0,62345.0,0.000822]
[1724767415694,1.23305045,62346.0,62345.0,0.000822]
[1724767415967,0.1893,62330.0,62328.0,0.000822]
[1724767416230,0.50897517,62329.0,62328.0,0.000822]
[1724767416472,0.50897517,62329.0,62300.0,0.0011]
[1724767416473,0.002,62327.0,62309.0,0.001]
[1724767416731,0.89577517,62329.0,62300.0,0.0011]
[1724767416732,0.4027,62308.0,62300.0,0.0011]
[1724767416978,0.16397867,62307.0,62300.0,0.0011]
[1724767417659,0.4027,62318.0,62300.0,0.0031]
[1724767417899,0.4027,62318.0,62303.0,0.001]
[1724767418188,0.1992,62325.0,62303.0,0.001]
[1724767418189,0.3872,62323.0,62304.0,0.3845]
[1724767418413,0.16397744,62322.0,62304.0,0.3845]
[1724767418633,0.16397744,62322.0,62305.0,0.123]
[1724767419102,0.16397744,62322.0,62309.0,0.001]
[1724767419370,0.014,62327.0,62312.0,0.3855]
[1724767419623,0.47989634,62325.0,62313.0,0.123]
[1724767419881,0.16397735,62324.0,62313.0,0.1]
[1724767420810,0.003,62322.0,62313.0,0.1]
[1724767421555,0.00401173,62321.0,62313.0,0.1]
[1724767421794,0.00401173,62321.0,62313.0,0.12019166]
[1724767422064,0.00401173,62321.0,62313.0,0.13419166]
[1724767422544,0.3872,62330.0,62313.0,0.12019166]
[1724767422545,0.16397722,62320.0,62313.0,0.12019166]
[1724767422769,0.16397722,62320.0,62313.0,0.02919166]
[1724767422770,0.00401209,62319.0,62313.0,0.02919166]
[1724767423015,0.15996545,62318.0,62313.0,0.03419166]
[1724767423260,0.00401212,62329.0,62313.0,0.03419166]
[1724767423486,0.15996545,62317.0,62313.0,0.026]
[1724767423737,0.00401233,62316.0,62313.0,0.014]
[1724767423958,0.15996545,62315.0,62313.0,0.014]
[1724767424193,0.20281233,62314.0,62313.0,0.014]
[1724767424427,0.20281233,62314.0,62304.0,3.397734]
[1724767424428,0.78885556,62314.0,62304.0,3.397734]
[1724767424665,0.5896,62314.0,62313.0,0.028]
[1724767424905,0.5896,62314.0,62304.0,3.397734]
[1724767424906,0.1847,62308.0,62304.0,3.397734]
[1724767425135,0.34499698,62305.0,62304.0,3.397734]
[1724767425362,1.13866213,62305.0,62304.0,3.397734]
[1724767425603,0.79566515,62305.0,62304.0,3.397734]
[1724767425856,1.14066213,62305.0,62304.0,3.397734]
[1724767426123,1.64516313,62305.0,62304.0,3.397734]
[1724767426373,0.1269,62294.0,62289.0,0.00823]
[1724767426612,0.15996545,62292.0,62289.0,0.00823]
[1724767426883,0.55746545,62292.0,62289.0,0.00823]
[1724767427881,0.55746545,62292.0,62291.0,0.0514]
[1724767429047,0.55746545,62292.0,62291.0,0.0524]
[1724767429048,0.56646545,62292.0,62291.0,0.0524]
[1724767429510,0.16896545,62292.0,62291.0,0.0514]
[1724767429749,0.18196545,62292.0,62291.0,0.1514]
[1724767430720,0.16896545,62292.0,62291.0,0.1514]
[1724767430934,0.18196545,62292.0,62291.0,0.1514]
[1724767431158,0.17296545,62292.0,62291.0,0.1504]
[1724767431398,0.17296545,62292.0,62291.0,1.1504]
[1724767431619,0.18196545,62292.0,62291.0,1.1504]
[1724767431857,0.18196545,62292.0,62291.0,1.151224]
[1724767432095,0.17296545,62292.0,62291.0,1.151224]
[1724767432327,0.17496545,62292.0,62291.0,1.151224]
[1724767432562,0.16196545,62292.0,62291.0,1.151224]
[1724767432813,0.16596545,62292.0,62291.0,1.151224]
[1724767436505,0.54346545,62292.0,62291.0,1.151224]
[1724767438096,0.72746545,62292.0,62291.0,1.051224]
[1724767441963,0.54346545,62292.0,62291.0,1.051224]
[1724767448144,0.54346545,62292.0,62281.0,0.01522]
[1724767448145,0.160585,62272.0,62251.0,0.0006156]
[1724767448376,0.48381,62265.0,62251.0,0.0006156]
[1724767448599,1.24803449,62265.0,62251.0,0.0006156]
[1724767448831,1.56924149,62265.0,62251.0,0.0006156]
[1724767449068,2.05954849,62265.0,62251.0,0.0006156]
[1724767449297,1.199982,62260.0,62251.0,0.0006156]
[1724767449523,1.02684049,62260.0,62251.0,0.0006156]
[1724767449985,1.34807349,62260.0,62251.0,0.0006156]
[1724767450254,1.02684049,62260.0,62251.0,0.0006156]
[1724767450484,0.86622449,62260.0,62251.0,0.0006156]
[1724767450715,1.02684049,62260.0,62251.0,0.0006156]
[1724767450949,0.74122449,62260.0,62251.0,0.0006156]
[1724767451172,0.3949,62260.0,62252.0,0.1917]
[1724767451393,0.56886545,62260.0,62259.0,0.07675052]
[1724767451619,0.58286545,62260.0,62259.0,0.07675052]
[1724767451846,0.17396545,62260.0,62259.0,0.07575052]
[1724767453229,0.15996545,62260.0,62259.0,0.07575052]
[1724767453451,0.17396545,62260.0,62259.0,0.27195052]
[1724767453675,0.17396545,62260.0,62259.0,0.33837557]
[1724767453903,0.17396545,62260.0,62259.0,0.33737557]
[1724767454192,0.18196545,62260.0,62259.0,0.27195052]
[1724767454429,0.18196545,62260.0,62259.0,0.07675052]
[1724767454430,0.16796545,62260.0,62259.0,0.07675052]
[1724767454654,0.17096545,62260.0,62259.0,0.07575052]
[1724767454890,0.16398158,62260.0,62259.0,0.07575052]
[1724767455114,0.16398158,62260.0,62259.0,0.07875052]
[1724767455350,0.57108158,62260.0,62259.0,0.07875052]
[1724767455801,0.57108158,62260.0,62259.0,0.07957452]
[1724767456250,0.57108158,62260.0,62259.0,0.07657452]
[1724767456725,0.57908158,62260.0,62259.0,0.07757452]
[1724767457177,0.16398158,62260.0,62259.0,0.07657452]
[1724767457430,0.18298158,62260.0,62259.0,0.07757452]
[1724767457650,0.55618158,62260.0,62259.0,0.07757452]
[1724767457879,0.55418158,62260.0,62259.0,0.07757452]
[1724767458115,0.56518158,62260.0,62259.0,0.07757452]
[1724767458365,0.55518158,62260.0,62259.0,0.07757452]
[1724767458582,0.55618158,62260.0,62259.0,0.07757452]
[1724767458813,0.56718158,62260.0,62259.0,0.07757452]
[1724767459269,0.71679758,62260.0,62259.0,0.07757452]
[1724767459507,0.71679758,62260.0,62259.0,0.07657452]
[1724767459508,0.70879758,62260.0,62259.0,0.07657452]
[1724767459739,0.70879758,62260.0,62259.0,0.07757452]
[1724767459740,0.74196677,62260.0,62259.0,0.07757452]
[1724767459973,0.58135077,62260.0,62259.0,0.07757452]
[1724767460212,0.57335077,62260.0,62259.0,0.07657452]
[1724767460686,0.57335077,62260.0,62259.0,0.07757452]
[1724767460687,0.58135077,62260.0,62259.0,0.07757452]
[1724767460910,0.59235077,62260.0,62259.0,0.07757452]
[1724767461361,0.59035077,62260.0,62259.0,0.07757452]
[1724767461586,0.59235077,62260.0,62259.0,0.07757452]
[1724767462315,0.75296677,62260.0,62259.0,0.07757452]
[1724767462543,0.59235077,62260.0,62259.0,0.07757452]
[1724767463472,0.75296677,62260.0,62259.0,0.07757452]
[1724767463692,0.59235077,62260.0,62259.0,0.07757452]
[1724767463931,0.59035077,62260.0,62259.0,0.07757452]
[1724767464382,0.59235077,62260.0,62259.0,0.07757452]
[1724767464866,0.56618158,62260.0,62259.0,0.07757452]
[1724767465089,0.18298158,62260.0,62259.0,0.07757452]
[1724767465315,0.17896545,62260.0,62259.0,0.07757452]
[1724767465535,0.18298164,62260.0,62259.0,0.07757452]
[1724767466023,0.34559764,62260.0,62259.0,0.07757452]
[1724767468272,0.18498164,62260.0,62259.0,0.07757452]
[1724767468499,0.34559764,62260.0,62259.0,0.07757452]
[1724767468726,0.18498164,62260.0,62259.0,0.07757452]
[1724767468942,0.34559764,62260.0,62259.0,0.07757452]
[1724767469389,0.18498164,62260.0,62259.0,0.07757452]
[1724767469627,0.18298164,62260.0,62259.0,0.07757452]
[1724767470858,0.17896545,62260.0,62259.0,0.07757452]
[1724767471356,0.17896545,62260.0,62259.0,0.50620197]
[1724767471591,0.019,62260.0,62259.0,0.76477452]
[1724767471857,0.17896545,62260.0,62259.0,0.76477452]
[1724767472080,0.019,62260.0,62259.0,0.76477452]
[1724767472317,0.0009064,62264.0,62260.0,0.5872]
[1724767472534,0.0009064,62264.0,62261.0,0.5732]
[1724767472761,0.0009064,62264.0,62260.0,0.1]
[1724767472762,0.0009064,62264.0,62263.0,0.5732]
[1724767472990,0.0009064,62264.0,62263.0,0.6732]
[1724767473514,0.0019064,62264.0,62263.0,0.6732]
[1724767473736,0.0019064,62264.0,62263.0,0.75742271]
[1724767473978,0.0009064,62264.0,62263.0,0.75742271]
[1724767474479,0.0019064,62264.0,62263.0,0.77142271]
[1724767474704,0.001,62293.0,62263.0,0.77142271]
[1724767474705,0.00401499,62284.0,62264.0,0.6033]
[1724767474981,0.003,62297.0,62263.0,1.17625971]
[1724767474982,0.47989634,62279.0,62271.0,0.1911]
[1724767475214,0.003,62298.0,62274.0,0.4122]
[1724767475468,0.82712723,62300.0,62270.0,0.101]
[1724767475469,0.15996545,62292.0,62275.0,0.2911]
[1724767475714,0.00401429,62291.0,62276.0,0.44131]
[1724767475956,0.15996545,62290.0,62277.0,0.1]
[1724767476207,0.002,62284.0,62280.0,0.3807]
[1724767476449,0.15996545,62284.0,62281.0,0.2943]
[1724767476678,0.004014,62299.0,62283.0,0.1909]
[1724767476928,0.15996545,62298.0,62286.0,0.3961]